{"text_format":"1","workbook":"xlsx","n_sheets":2,"sheets":["Outil de calcul","Tarification 2020"],"not_rendered":{"charts":0,"images":2,"macros":1,"external_links":0,"defined_names":2,"comments":0,"pivot_tables":0},"unopened":[],"bounds":{"document_bytes":16777216,"sheet_cells":100000,"rows_first":2000,"rows_last":500,"rows_between":2000,"halvings":0,"cell_chars":16384,"cell_head_chars":4096},"cells_cut":0,"cells_raw":0,"read":"whole","date_system":"1900"}

{"sheet":"Outil de calcul","index":0,"n_rows":238,"n_cols":68,"rows_kept":238,"cut":false,"hidden":false,"merged":[[14,0,14,11],[16,9,16,11],[27,10,27,11],[30,1,30,11],[28,10,28,11],[22,10,22,11],[0,12,0,15],[32,10,32,11],[16,13,17,13],[16,14,17,14],[16,15,17,15],[31,13,32,13],[31,14,32,14],[5,10,5,14],[7,11,7,15],[12,13,12,15],[12,1,13,12],[31,10,31,11],[19,0,19,11],[24,0,24,11],[20,9,20,12],[25,9,25,12],[38,10,38,11],[207,65,207,66],[17,10,17,11],[41,14,43,14],[41,15,43,15],[41,10,41,11],[42,10,42,11],[43,10,43,11],[41,13,43,13],[35,10,35,11],[31,15,32,15]]}
[null,null,null,null,null,null,null,null,null,null,null,null,"Alliance du personnel professionnel et technique de la santé et des services sociaux"]
[]
[]
["Instruction :",null,null,null,"Compléter les cases encadrées en rouge",null,null,null,null,null,null,null,null,null,null,"Outil de calcul des primes"]
["Identification de l'employée"]
[null,"Nom de l'employée (facultatif)"]
[null,"Salaire annuel"]
[null,"Salaire par période de 14 jours",null,null,null,null,null,null,null,null,{"$f":"$K$7/26","v":0},"Ce montant est utilisé pour calculer l'assurance salaire\nÀ modifier s'il n'est pas adéquat",null,null,null,null,null,null,{"$f":"+$K$7/26","v":0}]
[null,"Date de naissance",null,null,null,null,null,null,null,null,null,null,null,"Âge de la personne adhérente",{"$f":"IF(ISERROR(BL183),\"\",BL183)","v":""}]
[null,"Sexe de la personne adhérente"]
[]
[]
[null,{"$f":"IF(AND(TODAY()>='Tarification 2020'!B4,TODAY()<='Tarification 2020'!C4),\"\",CONCATENATE(\"Veuillez prendre note que les primes en vigueur dans ce document sont valides seulement pour la période du \",TEXT(+'Tarification 2020'!B4,\"AAAA-MM-JJ\"),\" au \",TEXT(+'Tarification 2020'!C4,\"AAAA-MM-JJ\")))","v":""},null,null,null,null,null,null,null,null,null,null,null,"Primes (par période de 14 jours)"]
[null,null,null,null,null,null,null,null,null,null,null,null,null,"Employée","Employeur","Total"]
["Régime de base d'assurance maladie (obligatoire)",null,null,null,null,null,null,null,null,null,null,null,null,null,null,null,null,{"$f":"IF(OR(J17=\"\",J17=\"Exemption\",BN208=\"\"),0,HLOOKUP(J17,'Tarification 2020'!#REF!,2,FALSE))","v":0},{"$f":"IF(OR(J17=\"\",J17=\"Exemption\",BN208=\"\"),0,HLOOKUP(J17,'Tarification 2020'!#REF!,3,FALSE))","v":0}]
[null,"Assurance maladie",null,null,null,null,null,null,null,null,null,null,null,null,null,null,null,{"$f":"IF(OR(J17=\"\",J17=\"Exemption\",BN208=\"\"),0,HLOOKUP(J17,'Tarification 2020'!#REF!,2,FALSE))","v":0},{"$f":"IF(OR(J17=\"\",J17=\"Exemption\",BN208=\"\"),0,HLOOKUP(J17,'Tarification 2020'!#REF!,3,FALSE))","v":0}]
[null,"Choix de la protection:",null,null,null,null,null,null,null,null,null,null,null,{"$f":"IF(OR(J17=\"\",J17=\"Exemption\",K18=\"\"),0,HLOOKUP(J17,'Tarification 2020'!C9:O10,2,FALSE)-O17)","v":0},{"$f":"IF(J17=\"Exemption\",0,K18)","v":0},{"$f":"ROUNDUP(IF(ISERROR(+N17+O17),0,+N17+O17),2)","v":0},null,{"$f":"VLOOKUP(J17,BJ135:BK147,2,FALSE)","v":{"$error":"#N/A"}}]
[null,"Part de l'employeur / 14 jours",null,null,null,null,null,null,null,null,null,null,null,null,null,null,null,{"$f":"VLOOKUP(K23,BJ149:BK152,2,FALSE)","v":{"$error":"#N/A"}}]
[null,{"$f":"IF(J17=0,\"\",IF(AND(J17=\"Exemption\",K18<>0),\"Il n'y a pas de montant à inscire\",IF(AND(K18=0,J17<>\"Exemption\"),\"Pour calculer cette protection vous devez inscrire la part de l'employeur pour 14 jours\",\"\")))","v":""}]
["Régime de soins dentaires"]
[null,null,null,null,null,null,null,null,null,"(facultatif au choix de la personne adhérente) *"]
[null,"Soins dentaires"]
[null,"Choix de la protection:",null,null,null,null,null,null,null,null,null,null,null,{"$f":"IF(K23=\"\",0,IF(B24<>\"\",0,IF(R17>=R18,ROUNDUP(HLOOKUP(K23,'Tarification 2020'!C15:F16,2,FALSE),2),0)))","v":0},0,{"$f":"+O23+N23","v":0}]
[null,{"$f":"IF(K23=\"\",\"\",IF(AND(R17=3,R18=2),\"Cette combinaison n'est pas disponible\",IF(R18>R17,\"Le régime de soins dentaires ne peut couvrir plus d'assuré que le régime de base d'assurance maladie\",\"\")))","v":""}]
["Régime complémentaire I"]
[null,null,null,null,null,null,null,null,null,"(obligatoire sauf vie additionnelle facultative) *"]
[null,"a) Assurance vie de base et MA de la personne adhérente",null,null,null,null,null,null,null,null,null,null,null,null,null,null,null,null,null,null," Et plus"]
[null,null,"Assurance vie",null,null,null,null,null,null,null,"Obligatoire",null,null,{"$f":"IF(OR(K8=0,K28=\"Droit de renonciation\"),0,ROUND(('Tarification 2020'!D19*K8),2))","v":0},0,{"$f":"+O28+N28","v":0}]
[null,null,"MMA",null,null,null,null,null,null,null,"Obligatoire",null,null,{"$f":"+'Tarification 2020'!D20","v":0.16},0,{"$f":"+O29+N29","v":0.16}]
[null,{"$f":"IF(K7=\"\",\"Vous devez entrer le salaire dans la section identification de l'employée\",\"\")","v":"Vous devez entrer le salaire dans la section identification de l'employée"}]
[null,"b) Assurance vie additionnelle de la personne adhérente"]
[null,null,"Faire un choix",null,null,null,null,null,null,null,null,null,null,{"$f":"IF(OR(K33=\"\",K10=\"\",K9=\"\"),0,IF(OR(K32=\"\",K32=\"Non\"),0,ROUND(IF(K33=\"Fumeuse\",R33,R34)*(K7*VLOOKUP(K32,BJ132:BK134,2,FALSE)/26),2)))","v":0},0,{"$f":"+O32+N32","v":0}]
[null,null,"Habitudes tabagiques",null,null,null,null,null,null,null,null,null,null,null,null,null,null,{"$f":"IF(K10=\"Masculin\",VLOOKUP(O9,'Tarification 2020'!B26:F34,4,TRUE),VLOOKUP(O9,'Tarification 2020'!B26:F34,2,TRUE))","v":{"$error":"#N/A"}}]
[null,{"$f":"IF(OR(K32=\"Non\",K32=\"\"),\"\",IF(AND(OR($K$29=0,K29=\"\"),K32=\"Oui\"),\"Cette garantie n'est pas disponible si l'assurance vie de base de l'employé(e) n'est pas choisie\",IF(AND(K32<>\"\",K33=\"\"),\"Vous devez choisir un habitude tabagique pour cette protection\",IF(OR(K7=\"\",K9=\"\",K10=\"\"),\"Vous devez saisir le salaire, la date de naissance et le sexe de la personne adhérente pour calculer cette protection\",\"\"))))","v":""},null,null,null,null,null,null,null,null,null,null,null,null,null,null,null,{"$f":"IF(K10=\"Masculin\",VLOOKUP(O9,'Tarification 2020'!B26:F34,5,TRUE),VLOOKUP(O9,'Tarification 2020'!B26:F34,3,TRUE))","v":{"$error":"#N/A"}}]
[null,"c) Assurance salaire de longue durée de la personne adhérente"]
[null,null,"Montant de la protection",null,null,null,null,null,null,null,"Obligatoire",null,null,{"$f":"IF(K36=\"Droit de renonciation\",0,ROUNDUP(('Tarification 2020'!D21*K8),2))","v":0},0,{"$f":"+O36+N36","v":0}]
[null,{"$f":"IF(K36=\"Droit de renonciation\",\"Choix possible uniquement si l'adhérent est en retraite progressive\",IF(K7=\"\",\"Vous devez entrer le salaire dans la section identification de l'employée\",\"\"))","v":"Vous devez entrer le salaire dans la section identification de l'employée"}]
[null,"e) Assurance vie de la personne conjointe et des enfants à charge"]
[null,null,"Protection",null,null,null,null,null,null,null,{"$f":"IF(J17=\"\",\"\",IF(R17=4,\"Familiale\",IF(R17=3,\"Couple\",IF(R17=2,\"Monoparentale\",\"\"))))","v":""},null,null,{"$f":"IF(K39=\"\",0,HLOOKUP(K39,'Tarification 2020'!D37:F38,2,FALSE))","v":0},0,{"$f":"+O39+N39","v":0}]
[]
[null,"e) Assurance vie additionnelle de la personne conjointe"]
[null,null,"Faire un choix",null,null,null,null,null,null,null,null,null,null,{"$f":"IF(B45<>\"\",0,IF(OR(K42=\"\",K42=\"Non\"),0,ROUND(IF(K44=\"Fumeuse\",R44,R45)*(K42/1000),2)))","v":0},0,{"$f":"O42+N42","v":0}]
[null,null,"Sexe de la personne conjointe"]
[null,null,"Habitudes tabagiques",null,null,null,null,null,null,null,null,null,null,null,null,null,null,{"$f":"IF(K43=\"Masculin\",VLOOKUP(O9,'Tarification 2020'!B44:F52,4,TRUE),VLOOKUP(O9,'Tarification 2020'!B44:F52,2,TRUE))","v":{"$error":"#N/A"}}]
[null,{"$f":"IF(OR(K42=\"Non\",K42=\"\"),\"\",IF(K9=\"\",\"Vous devez entrer la date de naissance de l'adhérente dans la section identification de l'employé.\",IF(AND(K42<>\"\",K42<>\"Non\",K43=\"\"),\"Saisir le sexe de la personne conjointe.\",IF(AND(K42<>\"\",K42<>\"Non\",K44=\"\"),\"Saisir un statut pour les habitudes tabagiques de la personne conjointe\",\"\"))))","v":""},null,null,null,null,null,null,null,null,null,null,null,null,null,null,null,{"$f":"IF(K43=\"Masculin\",VLOOKUP(O9,'Tarification 2020'!B44:F52,5,TRUE),VLOOKUP(O9,'Tarification 2020'!B44:F52,3,TRUE))","v":{"$error":"#N/A"}}]
[null,null,null,null,null,null,null,null,null,null,null,null,"Sous-total",{"$f":"+N36+N32+N28+N29+N23+N17+N42+N39","v":0.16},{"$f":"+O36+O32+O28+O29+O23+O17+O42+O39","v":0},{"$f":"+P36+P32+P28+P29+P23+P17+P42+P39","v":0.16}]
[null,null,null,null,null,null,null,null,null,null,null,null,"Taxe",{"$f":"ROUNDUP(N46*0.09,2)","v":0.02},{"$f":"ROUNDUP(O46*0.09,2)","v":0},{"$f":"ROUNDUP(P46*0.09,2)","v":0.02}]
[null,null,null,null,null,null,null,null,null,null,null,null,"Total des primes",{"$f":"+N47+N46","v":0.18},{"$f":"+O47+O46","v":0},{"$f":"+P47+P46","v":0.18}]
[]
[]
[]
[]
["*  Facultatif pour une salariée travaillant 25% ou moins du temps complet."]
[]
[]
[]
[]
[]
[]
[]
[]
[]
[]
[]
[]
[]
[]
[]
[]
[]
[]
[]
[]
[]
[]
[]
[]
[]
[]
[]
[]
[]
[]
[]
[]
[]
[]
[]
[]
[]
[]
[]
[]
[]
[]
[]
[]
[]
[]
[]
[]
[]
[]
[]
[]
[]
[]
[]
[]
[]
[]
[]
[]
[]
[]
[]
[null,null,null,null,null,null,null,null,null,null,null,null,null,null,null,null,null,null,null,null,null,null,null,null,null,null,null,null,null,null,null,null,null,null,null,null,null,null,null,null,null,null,null,null,null,null,null,null,null,null,null,null,null,null,null,null,null,null,null,null,null,null,null,null,null,null,{"$f":"TODAY()","v":"2020-07-23"},{"$f":"+BO117","v":44035}]
[]
[]
[]
[]
[]
[]
[]
[]
[null,null,null,null,null,null,null,null,null,null,null,null,null,null,null,null,null,null,null,null,null,null,null,null,null,null,null,null,null,null,null,null,null,null,null,null,null,null,null,null,null,null,null,null,null,null,null,null,null,null,null,null,null,null,null,null,null,null,null,null,"Valeurs utilisées dans les listes déroulantes"]
[]
[null,null,null,null,null,null,null,null,null,null,null,null,null,null,null,null,null,null,null,null,null,null,null,null,null,null,null,null,null,null,null,null,null,null,null,null,null,null,null,null,null,null,null,null,null,null,null,null,null,null,null,null,null,null,null,null,null,null,null,null,null,"Oui","O"]
[null,null,null,null,null,null,null,null,null,null,null,null,null,null,null,null,null,null,null,null,null,null,null,null,null,null,null,null,null,null,null,null,null,null,null,null,null,null,null,null,null,null,null,null,null,null,null,null,null,null,null,null,null,null,null,null,null,null,null,null,null,"Non","N"]
[]
[null,null,null,null,null,null,null,null,null,null,null,null,null,null,null,null,null,null,null,null,null,null,null,null,null,null,null,null,null,null,null,null,null,null,null,null,null,null,null,null,null,null,null,null,null,null,null,null,null,null,null,null,null,null,null,null,null,null,null,null,null,"Non"]
[null,null,null,null,null,null,null,null,null,null,null,null,null,null,null,null,null,null,null,null,null,null,null,null,null,null,null,null,null,null,null,null,null,null,null,null,null,null,null,null,null,null,null,null,null,null,null,null,null,null,null,null,null,null,null,null,null,null,null,null,null,"1 fois le salaire",1]
[null,null,null,null,null,null,null,null,null,null,null,null,null,null,null,null,null,null,null,null,null,null,null,null,null,null,null,null,null,null,null,null,null,null,null,null,null,null,null,null,null,null,null,null,null,null,null,null,null,null,null,null,null,null,null,null,null,null,null,null,null,"2 fois le salaire",2]
[null,null,null,null,null,null,null,null,null,null,null,null,null,null,null,null,null,null,null,null,null,null,null,null,null,null,null,null,null,null,null,null,null,null,null,null,null,null,null,null,null,null,null,null,null,null,null,null,null,null,null,null,null,null,null,null,null,null,null,null,null,"3 fois le salaire",3]
[null,null,null,null,null,null,null,null,null,null,null,null,null,null,null,null,null,null,null,null,null,null,null,null,null,null,null,null,null,null,null,null,null,null,null,null,null,null,null,null,null,null,null,null,null,null,null,null,null,null,null,null,null,null,null,null,null,null,null,null,null,"Régime maladie de base individuel",1]
[null,null,null,null,null,null,null,null,null,null,null,null,null,null,null,null,null,null,null,null,null,null,null,null,null,null,null,null,null,null,null,null,null,null,null,null,null,null,null,null,null,null,null,null,null,null,null,null,null,null,null,null,null,null,null,null,null,null,null,null,null,"Régime maladie de base monoparental",2]
[null,null,null,null,null,null,null,null,null,null,null,null,null,null,null,null,null,null,null,null,null,null,null,null,null,null,null,null,null,null,null,null,null,null,null,null,null,null,null,null,null,null,null,null,null,null,null,null,null,null,null,null,null,null,null,null,null,null,null,null,null,"Régime maladie de base Couple",3]
[null,null,null,null,null,null,null,null,null,null,null,null,null,null,null,null,null,null,null,null,null,null,null,null,null,null,null,null,null,null,null,null,null,null,null,null,null,null,null,null,null,null,null,null,null,null,null,null,null,null,null,null,null,null,null,null,null,null,null,null,null,"Régime maladie de base Familial",4]
[null,null,null,null,null,null,null,null,null,null,null,null,null,null,null,null,null,null,null,null,null,null,null,null,null,null,null,null,null,null,null,null,null,null,null,null,null,null,null,null,null,null,null,null,null,null,null,null,null,null,null,null,null,null,null,null,null,null,null,null,null,"Régime maladie intermédiaire individuel",1]
[null,null,null,null,null,null,null,null,null,null,null,null,null,null,null,null,null,null,null,null,null,null,null,null,null,null,null,null,null,null,null,null,null,null,null,null,null,null,null,null,null,null,null,null,null,null,null,null,null,null,null,null,null,null,null,null,null,null,null,null,null,"Régime maladie intermédiaire monoparental",2]
[null,null,null,null,null,null,null,null,null,null,null,null,null,null,null,null,null,null,null,null,null,null,null,null,null,null,null,null,null,null,null,null,null,null,null,null,null,null,null,null,null,null,null,null,null,null,null,null,null,null,null,null,null,null,null,null,null,null,null,null,null,"Régime maladie intermédiaire couple",3]
[null,null,null,null,null,null,null,null,null,null,null,null,null,null,null,null,null,null,null,null,null,null,null,null,null,null,null,null,null,null,null,null,null,null,null,null,null,null,null,null,null,null,null,null,null,null,null,null,null,null,null,null,null,null,null,null,null,null,null,null,null,"Régime maladie intermédiaire familial",4]
[null,null,null,null,null,null,null,null,null,null,null,null,null,null,null,null,null,null,null,null,null,null,null,null,null,null,null,null,null,null,null,null,null,null,null,null,null,null,null,null,null,null,null,null,null,null,null,null,null,null,null,null,null,null,null,null,null,null,null,null,null,"Régime maladie supérieur individuel",1]
[null,null,null,null,null,null,null,null,null,null,null,null,null,null,null,null,null,null,null,null,null,null,null,null,null,null,null,null,null,null,null,null,null,null,null,null,null,null,null,null,null,null,null,null,null,null,null,null,null,null,null,null,null,null,null,null,null,null,null,null,null,"Régime maladie supérieur monoparental",2]
[null,null,null,null,null,null,null,null,null,null,null,null,null,null,null,null,null,null,null,null,null,null,null,null,null,null,null,null,null,null,null,null,null,null,null,null,null,null,null,null,null,null,null,null,null,null,null,null,null,null,null,null,null,null,null,null,null,null,null,null,null,"Régime maladie supérieur couple",3]
[null,null,null,null,null,null,null,null,null,null,null,null,null,null,null,null,null,null,null,null,null,null,null,null,null,null,null,null,null,null,null,null,null,null,null,null,null,null,null,null,null,null,null,null,null,null,null,null,null,null,null,null,null,null,null,null,null,null,null,null,null,"Régime maladie supérieur familial",4]
[null,null,null,null,null,null,null,null,null,null,null,null,null,null,null,null,null,null,null,null,null,null,null,null,null,null,null,null,null,null,null,null,null,null,null,null,null,null,null,null,null,null,null,null,null,null,null,null,null,null,null,null,null,null,null,null,null,null,null,null,null,"Exemption",5]
[]
[null,null,null,null,null,null,null,null,null,null,null,null,null,null,null,null,null,null,null,null,null,null,null,null,null,null,null,null,null,null,null,null,null,null,null,null,null,null,null,null,null,null,null,null,null,null,null,null,null,null,null,null,null,null,null,null,null,null,null,null,null,"Individuel",1]
[null,null,null,null,null,null,null,null,null,null,null,null,null,null,null,null,null,null,null,null,null,null,null,null,null,null,null,null,null,null,null,null,null,null,null,null,null,null,null,null,null,null,null,null,null,null,null,null,null,null,null,null,null,null,null,null,null,null,null,null,null,"Monoparental",2]
[null,null,null,null,null,null,null,null,null,null,null,null,null,null,null,null,null,null,null,null,null,null,null,null,null,null,null,null,null,null,null,null,null,null,null,null,null,null,null,null,null,null,null,null,null,null,null,null,null,null,null,null,null,null,null,null,null,null,null,null,null,"Couple",3]
[null,null,null,null,null,null,null,null,null,null,null,null,null,null,null,null,null,null,null,null,null,null,null,null,null,null,null,null,null,null,null,null,null,null,null,null,null,null,null,null,null,null,null,null,null,null,null,null,null,null,null,null,null,null,null,null,null,null,null,null,null,"Familial",4]
[]
[null,null,null,null,null,null,null,null,null,null,null,null,null,null,null,null,null,null,null,null,null,null,null,null,null,null,null,null,null,null,null,null,null,null,null,null,null,null,null,null,null,null,null,null,null,null,null,null,null,null,null,null,null,null,null,null,null,null,null,null,null,"Non retenu par l'établissement",5]
[null,null,null,null,null,null,null,null,null,null,null,null,null,null,null,null,null,null,null,null,null,null,null,null,null,null,null,null,null,null,null,null,null,null,null,null,null,null,null,null,null,null,null,null,null,null,null,null,null,null,null,null,null,null,null,null,null,null,null,null,null,"Enfant(s) seulement",6]
[null,null,null,null,null,null,null,null,null,null,null,null,null,null,null,null,null,null,null,null,null,null,null,null,null,null,null,null,null,null,null,null,null,null,null,null,null,null,null,null,null,null,null,null,null,null,null,null,null,null,null,null,null,null,null,null,null,null,null,null,null,"Conjoint(e) et enfant(s)",7]
[]
[null,null,null,null,null,null,null,null,null,null,null,null,null,null,null,null,null,null,null,null,null,null,null,null,null,null,null,null,null,null,null,null,null,null,null,null,null,null,null,null,null,null,null,null,null,null,null,null,null,null,null,null,null,null,null,null,null,null,null,null,null,0]
[null,null,null,null,null,null,null,null,null,null,null,null,null,null,null,null,null,null,null,null,null,null,null,null,null,null,null,null,null,null,null,null,null,null,null,null,null,null,null,null,null,null,null,null,null,null,null,null,null,null,null,null,null,null,null,null,null,null,null,null,null,10000]
[null,null,null,null,null,null,null,null,null,null,null,null,null,null,null,null,null,null,null,null,null,null,null,null,null,null,null,null,null,null,null,null,null,null,null,null,null,null,null,null,null,null,null,null,null,null,null,null,null,null,null,null,null,null,null,null,null,null,null,null,null,25000]
[null,null,null,null,null,null,null,null,null,null,null,null,null,null,null,null,null,null,null,null,null,null,null,null,null,null,null,null,null,null,null,null,null,null,null,null,null,null,null,null,null,null,null,null,null,null,null,null,null,null,null,null,null,null,null,null,null,null,null,null,null,50000]
[null,null,null,null,null,null,null,null,null,null,null,null,null,null,null,null,null,null,null,null,null,null,null,null,null,null,null,null,null,null,null,null,null,null,null,null,null,null,null,null,null,null,null,null,null,null,null,null,null,null,null,null,null,null,null,null,null,null,null,null,null,75000]
[null,null,null,null,null,null,null,null,null,null,null,null,null,null,null,null,null,null,null,null,null,null,null,null,null,null,null,null,null,null,null,null,null,null,null,null,null,null,null,null,null,null,null,null,null,null,null,null,null,null,null,null,null,null,null,null,null,null,null,null,null,100000]
[null,null,null,null,null,null,null,null,null,null,null,null,null,null,null,null,null,null,null,null,null,null,null,null,null,null,null,null,null,null,null,null,null,null,null,null,null,null,null,null,null,null,null,null,null,null,null,null,null,null,null,null,null,null,null,null,null,null,null,null,null,125000]
[null,null,null,null,null,null,null,null,null,null,null,null,null,null,null,null,null,null,null,null,null,null,null,null,null,null,null,null,null,null,null,null,null,null,null,null,null,null,null,null,null,null,null,null,null,null,null,null,null,null,null,null,null,null,null,null,null,null,null,null,null,150000]
[null,null,null,null,null,null,null,null,null,null,null,null,null,null,null,null,null,null,null,null,null,null,null,null,null,null,null,null,null,null,null,null,null,null,null,null,null,null,null,null,null,null,null,null,null,null,null,null,null,null,null,null,null,null,null,null,null,null,null,null,null,175000]
[null,null,null,null,null,null,null,null,null,null,null,null,null,null,null,null,null,null,null,null,null,null,null,null,null,null,null,null,null,null,null,null,null,null,null,null,null,null,null,null,null,null,null,null,null,null,null,null,null,null,null,null,null,null,null,null,null,null,null,null,null,200000]
[null,null,null,null,null,null,null,null,null,null,null,null,null,null,null,null,null,null,null,null,null,null,null,null,null,null,null,null,null,null,null,null,null,null,null,null,null,null,null,null,null,null,null,null,null,null,null,null,null,null,null,null,null,null,null,null,null,null,null,null,null,225000]
[null,null,null,null,null,null,null,null,null,null,null,null,null,null,null,null,null,null,null,null,null,null,null,null,null,null,null,null,null,null,null,null,null,null,null,null,null,null,null,null,null,null,null,null,null,null,null,null,null,null,null,null,null,null,null,null,null,null,null,null,null,250000]
[]
[null,null,null,null,null,null,null,null,null,null,null,null,null,null,null,null,null,null,null,null,null,null,null,null,null,null,null,null,null,null,null,null,null,null,null,null,null,null,null,null,null,null,null,null,null,null,null,null,null,null,null,null,null,null,null,null,null,null,null,null,null,"Féminin","F"]
[null,null,null,null,null,null,null,null,null,null,null,null,null,null,null,null,null,null,null,null,null,null,null,null,null,null,null,null,null,null,null,null,null,null,null,null,null,null,null,null,null,null,null,null,null,null,null,null,null,null,null,null,null,null,null,null,null,null,null,null,null,"Masculin","M"]
[]
[]
[]
[null,null,null,null,null,null,null,null,null,null,null,null,null,null,null,null,null,null,null,null,null,null,null,null,null,null,null,null,null,null,null,null,null,null,null,null,null,null,null,null,null,null,null,null,null,null,null,null,null,null,null,null,null,null,null,null,null,null,null,null,null,"Données utilisées pour le calcul de l'âge"]
[null,null,null,null,null,null,null,null,null,null,null,null,null,null,null,null,null,null,null,null,null,null,null,null,null,null,null,null,null,null,null,null,null,null,null,null,null,null,null,null,null,null,null,null,null,null,null,null,null,null,null,null,null,null,null,null,null,null,null,null,null,"Date du renouvellement","2019-01-01",null,null,"Date de naissance",{"$f":"+K9","v":0}]
[null,null,null,null,null,null,null,null,null,null,null,null,null,null,null,null,null,null,null,null,null,null,null,null,null,null,null,null,null,null,null,null,null,null,null,null,null,null,null,null,null,null,null,null,null,null,null,null,null,null,null,null,null,null,null,null,null,null,null,null,null,"Mois",{"$f":"VLOOKUP(MONTH($BK$177),$BJ$189:$BK$219,2,FALSE)","v":"01"},null,null,"Mois",{"$f":"VLOOKUP(MONTH($BO$177),$BJ$189:$BK$219,2,FALSE)","v":"01"}]
[null,null,null,null,null,null,null,null,null,null,null,null,null,null,null,null,null,null,null,null,null,null,null,null,null,null,null,null,null,null,null,null,null,null,null,null,null,null,null,null,null,null,null,null,null,null,null,null,null,null,null,null,null,null,null,null,null,null,null,null,null,"Jour",{"$f":"VLOOKUP(DAY($BK$177),$BJ$189:$BK$219,2,FALSE)","v":"01"},null,null,"Jour",{"$f":"VLOOKUP(DAY($BO$177),$BJ$189:$BK$219,2,FALSE)","v":{"$error":"#N/A"}}]
[null,null,null,null,null,null,null,null,null,null,null,null,null,null,null,null,null,null,null,null,null,null,null,null,null,null,null,null,null,null,null,null,null,null,null,null,null,null,null,null,null,null,null,null,null,null,null,null,null,null,null,null,null,null,null,null,null,null,null,null,null,"date(texte)",{"$f":"CONCATENATE(YEAR(BK177),BK178,BK179)","v":"20190101"},null,null,"date(texte)",{"$f":"CONCATENATE(YEAR(BO177),BO178,BO179)","v":{"$error":"#N/A"}}]
[]
[null,null,null,null,null,null,null,null,null,null,null,null,null,null,null,null,null,null,null,null,null,null,null,null,null,null,null,null,null,null,null,null,null,null,null,null,null,null,null,null,null,null,null,null,null,null,null,null,null,null,null,null,null,null,null,null,null,null,null,null,null,null,null,{"$f":"+BK180-BO180","v":{"$error":"#N/A"}}]
[null,null,null,null,null,null,null,null,null,null,null,null,null,null,null,null,null,null,null,null,null,null,null,null,null,null,null,null,null,null,null,null,null,null,null,null,null,null,null,null,null,null,null,null,null,null,null,null,null,null,null,null,null,null,null,null,null,null,null,null,null,null,"Âge de l'adhérent",{"$f":"ROUNDDOWN(+BL182/10000,0)","v":{"$error":"#N/A"}}]
[]
[null,null,null,null,null,null,null,null,null,null,null,null,null,null,null,null,null,null,null,null,null,null,null,null,null,null,null,null,null,null,null,null,null,null,null,null,null,null,null,null,null,null,null,null,null,null,null,null,null,null,null,null,null,null,null,null,null,null,null,null,null,"Statut permanent"]
[null,null,null,null,null,null,null,null,null,null,null,null,null,null,null,null,null,null,null,null,null,null,null,null,null,null,null,null,null,null,null,null,null,null,null,null,null,null,null,null,null,null,null,null,null,null,null,null,null,null,null,null,null,null,null,null,null,null,null,null,null,"Statut temporaire ou temps partiel"]
[]
[null,null,null,null,null,null,null,null,null,null,null,null,null,null,null,null,null,null,null,null,null,null,null,null,null,null,null,null,null,null,null,null,null,null,null,null,null,null,null,null,null,null,null,null,null,null,null,null,null,null,null,null,null,null,null,null,null,null,null,null,null,"Jour(num)","Jour(texte)"]
[null,null,null,null,null,null,null,null,null,null,null,null,null,null,null,null,null,null,null,null,null,null,null,null,null,null,null,null,null,null,null,null,null,null,null,null,null,null,null,null,null,null,null,null,null,null,null,null,null,null,null,null,null,null,null,null,null,null,null,null,null,1,"01"]
[null,null,null,null,null,null,null,null,null,null,null,null,null,null,null,null,null,null,null,null,null,null,null,null,null,null,null,null,null,null,null,null,null,null,null,null,null,null,null,null,null,null,null,null,null,null,null,null,null,null,null,null,null,null,null,null,null,null,null,null,null,2,"02"]
[null,null,null,null,null,null,null,null,null,null,null,null,null,null,null,null,null,null,null,null,null,null,null,null,null,null,null,null,null,null,null,null,null,null,null,null,null,null,null,null,null,null,null,null,null,null,null,null,null,null,null,null,null,null,null,null,null,null,null,null,null,3,"03"]
[null,null,null,null,null,null,null,null,null,null,null,null,null,null,null,null,null,null,null,null,null,null,null,null,null,null,null,null,null,null,null,null,null,null,null,null,null,null,null,null,null,null,null,null,null,null,null,null,null,null,null,null,null,null,null,null,null,null,null,null,null,4,"04"]
[null,null,null,null,null,null,null,null,null,null,null,null,null,null,null,null,null,null,null,null,null,null,null,null,null,null,null,null,null,null,null,null,null,null,null,null,null,null,null,null,null,null,null,null,null,null,null,null,null,null,null,null,null,null,null,null,null,null,null,null,null,5,"05"]
[null,null,null,null,null,null,null,null,null,null,null,null,null,null,null,null,null,null,null,null,null,null,null,null,null,null,null,null,null,null,null,null,null,null,null,null,null,null,null,null,null,null,null,null,null,null,null,null,null,null,null,null,null,null,null,null,null,null,null,null,null,6,"06"]
[null,null,null,null,null,null,null,null,null,null,null,null,null,null,null,null,null,null,null,null,null,null,null,null,null,null,null,null,null,null,null,null,null,null,null,null,null,null,null,null,null,null,null,null,null,null,null,null,null,null,null,null,null,null,null,null,null,null,null,null,null,7,"07"]
[null,null,null,null,null,null,null,null,null,null,null,null,null,null,null,null,null,null,null,null,null,null,null,null,null,null,null,null,null,null,null,null,null,null,null,null,null,null,null,null,null,null,null,null,null,null,null,null,null,null,null,null,null,null,null,null,null,null,null,null,null,8,"08"]
[null,null,null,null,null,null,null,null,null,null,null,null,null,null,null,null,null,null,null,null,null,null,null,null,null,null,null,null,null,null,null,null,null,null,null,null,null,null,null,null,null,null,null,null,null,null,null,null,null,null,null,null,null,null,null,null,null,null,null,null,null,9,"09"]
[null,null,null,null,null,null,null,null,null,null,null,null,null,null,null,null,null,null,null,null,null,null,null,null,null,null,null,null,null,null,null,null,null,null,null,null,null,null,null,null,null,null,null,null,null,null,null,null,null,null,null,null,null,null,null,null,null,null,null,null,null,10,"10"]
[null,null,null,null,null,null,null,null,null,null,null,null,null,null,null,null,null,null,null,null,null,null,null,null,null,null,null,null,null,null,null,null,null,null,null,null,null,null,null,null,null,null,null,null,null,null,null,null,null,null,null,null,null,null,null,null,null,null,null,null,null,11,"11"]
[null,null,null,null,null,null,null,null,null,null,null,null,null,null,null,null,null,null,null,null,null,null,null,null,null,null,null,null,null,null,null,null,null,null,null,null,null,null,null,null,null,null,null,null,null,null,null,null,null,null,null,null,null,null,null,null,null,null,null,null,null,12,"12"]
[null,null,null,null,null,null,null,null,null,null,null,null,null,null,null,null,null,null,null,null,null,null,null,null,null,null,null,null,null,null,null,null,null,null,null,null,null,null,null,null,null,null,null,null,null,null,null,null,null,null,null,null,null,null,null,null,null,null,null,null,null,13,"13"]
[null,null,null,null,null,null,null,null,null,null,null,null,null,null,null,null,null,null,null,null,null,null,null,null,null,null,null,null,null,null,null,null,null,null,null,null,null,null,null,null,null,null,null,null,null,null,null,null,null,null,null,null,null,null,null,null,null,null,null,null,null,14,"14"]
[null,null,null,null,null,null,null,null,null,null,null,null,null,null,null,null,null,null,null,null,null,null,null,null,null,null,null,null,null,null,null,null,null,null,null,null,null,null,null,null,null,null,null,null,null,null,null,null,null,null,null,null,null,null,null,null,null,null,null,null,null,15,"15"]
[null,null,null,null,null,null,null,null,null,null,null,null,null,null,null,null,null,null,null,null,null,null,null,null,null,null,null,null,null,null,null,null,null,null,null,null,null,null,null,null,null,null,null,null,null,null,null,null,null,null,null,null,null,null,null,null,null,null,null,null,null,16,"16"]
[null,null,null,null,null,null,null,null,null,null,null,null,null,null,null,null,null,null,null,null,null,null,null,null,null,null,null,null,null,null,null,null,null,null,null,null,null,null,null,null,null,null,null,null,null,null,null,null,null,null,null,null,null,null,null,null,null,null,null,null,null,17,"17"]
[null,null,null,null,null,null,null,null,null,null,null,null,null,null,null,null,null,null,null,null,null,null,null,null,null,null,null,null,null,null,null,null,null,null,null,null,null,null,null,null,null,null,null,null,null,null,null,null,null,null,null,null,null,null,null,null,null,null,null,null,null,18,"18"]
[null,null,null,null,null,null,null,null,null,null,null,null,null,null,null,null,null,null,null,null,null,null,null,null,null,null,null,null,null,null,null,null,null,null,null,null,null,null,null,null,null,null,null,null,null,null,null,null,null,null,null,null,null,null,null,null,null,null,null,null,null,19,"19"]
[null,null,null,null,null,null,null,null,null,null,null,null,null,null,null,null,null,null,null,null,null,null,null,null,null,null,null,null,null,null,null,null,null,null,null,null,null,null,null,null,null,null,null,null,null,null,null,null,null,null,null,null,null,null,null,null,null,null,null,null,null,20,"20"]
[null,null,null,null,null,null,null,null,null,null,null,null,null,null,null,null,null,null,null,null,null,null,null,null,null,null,null,null,null,null,null,null,null,null,null,null,null,null,null,null,null,null,null,null,null,null,null,null,null,null,null,null,null,null,null,null,null,null,null,null,null,21,"21"]
[null,null,null,null,null,null,null,null,null,null,null,null,null,null,null,null,null,null,null,null,null,null,null,null,null,null,null,null,null,null,null,null,null,null,null,null,null,null,null,null,null,null,null,null,null,null,null,null,null,null,null,null,null,null,null,null,null,null,null,null,null,22,"22"]
[null,null,null,null,null,null,null,null,null,null,null,null,null,null,null,null,null,null,null,null,null,null,null,null,null,null,null,null,null,null,null,null,null,null,null,null,null,null,null,null,null,null,null,null,null,null,null,null,null,null,null,null,null,null,null,null,null,null,null,null,null,23,"23"]
[null,null,null,null,null,null,null,null,null,null,null,null,null,null,null,null,null,null,null,null,null,null,null,null,null,null,null,null,null,null,null,null,null,null,null,null,null,null,null,null,null,null,null,null,null,null,null,null,null,null,null,null,null,null,null,null,null,null,null,null,null,24,"24"]
[null,null,null,null,null,null,null,null,null,null,null,null,null,null,null,null,null,null,null,null,null,null,null,null,null,null,null,null,null,null,null,null,null,null,null,null,null,null,null,null,null,null,null,null,null,null,null,null,null,null,null,null,null,null,null,null,null,null,null,null,null,25,"25"]
[null,null,null,null,null,null,null,null,null,null,null,null,null,null,null,null,null,null,null,null,null,null,null,null,null,null,null,null,null,null,null,null,null,null,null,null,null,null,null,null,null,null,null,null,null,null,null,null,null,null,null,null,null,null,null,null,null,null,null,null,null,26,"26"]
[null,null,null,null,null,null,null,null,null,null,null,null,null,null,null,null,null,null,null,null,null,null,null,null,null,null,null,null,null,null,null,null,null,null,null,null,null,null,null,null,null,null,null,null,null,null,null,null,null,null,null,null,null,null,null,null,null,null,null,null,null,27,"27"]
[null,null,null,null,null,null,null,null,null,null,null,null,null,null,null,null,null,null,null,null,null,null,null,null,null,null,null,null,null,null,null,null,null,null,null,null,null,null,null,null,null,null,null,null,null,null,null,null,null,null,null,null,null,null,null,null,null,null,null,null,null,28,"28"]
[null,null,null,null,null,null,null,null,null,null,null,null,null,null,null,null,null,null,null,null,null,null,null,null,null,null,null,null,null,null,null,null,null,null,null,null,null,null,null,null,null,null,null,null,null,null,null,null,null,null,null,null,null,null,null,null,null,null,null,null,null,29,"29"]
[null,null,null,null,null,null,null,null,null,null,null,null,null,null,null,null,null,null,null,null,null,null,null,null,null,null,null,null,null,null,null,null,null,null,null,null,null,null,null,null,null,null,null,null,null,null,null,null,null,null,null,null,null,null,null,null,null,null,null,null,null,30,"30"]
[null,null,null,null,null,null,null,null,null,null,null,null,null,null,null,null,null,null,null,null,null,null,null,null,null,null,null,null,null,null,null,null,null,null,null,null,null,null,null,null,null,null,null,null,null,null,null,null,null,null,null,null,null,null,null,null,null,null,null,null,null,31,"31"]
[]
[null,null,null,null,null,null,null,null,null,null,null,null,null,null,null,null,null,null,null,null,null,null,null,null,null,null,null,null,null,null,null,null,null,null,null,null,null,null,null,null,null,null,null,null,null,null,null,null,null,null,null,null,null,null,null,null,null,null,null,null,null,0]
[null,null,null,null,null,null,null,null,null,null,null,null,null,null,null,null,null,null,null,null,null,null,null,null,null,null,null,null,null,null,null,null,null,null,null,null,null,null,null,null,null,null,null,null,null,null,null,null,null,null,null,null,null,null,null,null,null,null,null,null,null,10000]
[null,null,null,null,null,null,null,null,null,null,null,null,null,null,null,null,null,null,null,null,null,null,null,null,null,null,null,null,null,null,null,null,null,null,null,null,null,null,null,null,null,null,null,null,null,null,null,null,null,null,null,null,null,null,null,null,null,null,null,null,null,20000]
[null,null,null,null,null,null,null,null,null,null,null,null,null,null,null,null,null,null,null,null,null,null,null,null,null,null,null,null,null,null,null,null,null,null,null,null,null,null,null,null,null,null,null,null,null,null,null,null,null,null,null,null,null,null,null,null,null,null,null,null,null,30000]
[null,null,null,null,null,null,null,null,null,null,null,null,null,null,null,null,null,null,null,null,null,null,null,null,null,null,null,null,null,null,null,null,null,null,null,null,null,null,null,null,null,null,null,null,null,null,null,null,null,null,null,null,null,null,null,null,null,null,null,null,null,40000]
[null,null,null,null,null,null,null,null,null,null,null,null,null,null,null,null,null,null,null,null,null,null,null,null,null,null,null,null,null,null,null,null,null,null,null,null,null,null,null,null,null,null,null,null,null,null,null,null,null,null,null,null,null,null,null,null,null,null,null,null,null,50000]
[null,null,null,null,null,null,null,null,null,null,null,null,null,null,null,null,null,null,null,null,null,null,null,null,null,null,null,null,null,null,null,null,null,null,null,null,null,null,null,null,null,null,null,null,null,null,null,null,null,null,null,null,null,null,null,null,null,null,null,null,null,60000]
[null,null,null,null,null,null,null,null,null,null,null,null,null,null,null,null,null,null,null,null,null,null,null,null,null,null,null,null,null,null,null,null,null,null,null,null,null,null,null,null,null,null,null,null,null,null,null,null,null,null,null,null,null,null,null,null,null,null,null,null,null,70000]
[null,null,null,null,null,null,null,null,null,null,null,null,null,null,null,null,null,null,null,null,null,null,null,null,null,null,null,null,null,null,null,null,null,null,null,null,null,null,null,null,null,null,null,null,null,null,null,null,null,null,null,null,null,null,null,null,null,null,null,null,null,80000]
[null,null,null,null,null,null,null,null,null,null,null,null,null,null,null,null,null,null,null,null,null,null,null,null,null,null,null,null,null,null,null,null,null,null,null,null,null,null,null,null,null,null,null,null,null,null,null,null,null,null,null,null,null,null,null,null,null,null,null,null,null,90000]
[null,null,null,null,null,null,null,null,null,null,null,null,null,null,null,null,null,null,null,null,null,null,null,null,null,null,null,null,null,null,null,null,null,null,null,null,null,null,null,null,null,null,null,null,null,null,null,null,null,null,null,null,null,null,null,null,null,null,null,null,null,100000]
[]
[null,null,null,null,null,null,null,null,null,null,null,null,null,null,null,null,null,null,null,null,null,null,null,null,null,null,null,null,null,null,null,null,null,null,null,null,null,null,null,null,null,null,null,null,null,null,null,null,null,null,null,null,null,null,null,null,null,null,null,null,null,"Fumeuse","F"]
[null,null,null,null,null,null,null,null,null,null,null,null,null,null,null,null,null,null,null,null,null,null,null,null,null,null,null,null,null,null,null,null,null,null,null,null,null,null,null,null,null,null,null,null,null,null,null,null,null,null,null,null,null,null,null,null,null,null,null,null,null,"Non-fumeuse","NF"]
[]
[]
[null,null,null,null,null,null,null,null,null,null,null,null,null,null,null,null,null,null,null,null,null,null,null,null,null,null,null,null,null,null,null,null,null,null,null,null,null,null,null,null,null,null,null,null,null,null,null,null,null,null,null,null,null,null,null,null,null,null,null,null,null,"Obligatoire"]
[null,null,null,null,null,null,null,null,null,null,null,null,null,null,null,null,null,null,null,null,null,null,null,null,null,null,null,null,null,null,null,null,null,null,null,null,null,null,null,null,null,null,null,null,null,null,null,null,null,null,null,null,null,null,null,null,null,null,null,null,null,"Droit de renonciation"]

{"sheet":"Tarification 2020","index":1,"n_rows":52,"n_cols":15,"rows_kept":52,"cut":false,"hidden":false,"merged":[[13,1,13,5],[41,2,41,3],[41,4,41,5],[40,1,40,5],[5,1,5,4],[39,1,39,5],[17,1,17,4],[18,1,18,2],[19,1,19,2],[35,1,35,5],[20,1,20,2],[22,1,22,5],[23,2,23,3],[23,4,23,5],[12,1,12,5]]}
[]
[null,"Tarification"]
[null,"du","au"]
[null,"2020-01-01","2021-03-31"]
[]
[null,"TARIFICATION 2020-2021 SÉRIE X"]
[]
[]
[null,null,"Régime maladie de base individuel","Régime maladie de base monoparental","Régime maladie de base couple","Régime maladie de base familial","Régime maladie intermédiaire individuel","Régime maladie intermédiaire monoparental","Régime maladie intermédiaire couple","Régime maladie intermédiaire familial","Régime maladie supérieur individuel","Régime maladie supérieur monoparental","Régime maladie supérieur couple","Régime maladie supérieur familial","Exemption"]
[null,"Prime totale",42.14,62.5,84.3,100.84,52.45,77.75,104.88,125.48,70.36,104.39,140.69999999999999,168.45,0]
[]
[]
[null,"Soins dentaires"]
[null,"( Taux 14 jours )"]
[null,"Type","Individuel","Monoparental","Couple","Familial"]
[null,"Frais dentaires",16.239999999999998,26.33,32.49,43.44]
[]
[null,"Complémentaire 1"]
[null,"Vie base",null,8.4000000000000003E-4,"% salaire brut"]
[null,"MMA",null,0.16,"($)Fixe"]
[null,"Ass. Salaire Longue durée",null,5.1900000000000002E-3,"% salaire brut"]
[]
[null,"Assurance vie additionnelle adhérent"]
[null,null,"Femme",null,"Homme"]
[null,"Age","FF","FNF","HF","HNF"]
[null,0,2.0000000000000001E-4,1.8000000000000001E-4,3.4000000000000002E-4,2.9E-4]
[null,30,2.5999999999999998E-4,1.8000000000000001E-4,4.4999999999999999E-4,2.9E-4]
[null,35,3.8999999999999999E-4,2.5999999999999998E-4,6.4000000000000005E-4,4.4999999999999999E-4,null,null,null,null,"Obligatoire"]
[null,40,6.2E-4,4.2000000000000002E-4,1.0300000000000001E-3,6.8999999999999997E-4,null,null,null,null,"Obligatoire"]
[null,45,1.0300000000000001E-3,6.6E-4,1.74E-3,1.09E-3]
[null,50,1.7899999999999999E-3,1.0300000000000001E-3,2.96E-3,1.74E-3]
[null,55,3.0000000000000001E-3,1.66E-3,4.9899999999999996E-3,2.7699999999999999E-3]
[null,60,5.0699999999999999E-3,2.6700000000000001E-3,8.4399999999999996E-3,4.45E-3]
[null,65,8.5400000000000007E-3,4.2700000000000004E-3,1.4239999999999999E-2,7.1199999999999996E-3]
[]
[null,"Vie PAC",null,null,null,null,null,null,null,null,"Obligatoire"]
[null,null,null,"Familiale","Monoparentale","Couple"]
[null,null,"Prime",0.27,0.08,0.19]
[]
[null,"Assurance vie additionnelle conjoint"]
[null,"Taux par 1000$ de protection par 14 jours"]
[null,null,"Femme",null,"Homme"]
[null,"Age","FF","FNF","HF","HNF"]
[null,0,8.0000000000000002E-3,7.0000000000000001E-3,1.2999999999999999E-2,1.0999999999999999E-2]
[null,30,0.01,7.0000000000000001E-3,1.7000000000000001E-2,1.0999999999999999E-2]
[null,35,1.4999999999999999E-2,0.01,2.5000000000000001E-2,1.7000000000000001E-2]
[null,40,2.4E-2,1.6E-2,0.04,2.5999999999999999E-2]
[null,45,0.04,2.5000000000000001E-2,6.7000000000000004E-2,4.2000000000000003E-2]
[null,50,6.9000000000000006E-2,0.04,0.114,6.7000000000000004E-2]
[null,55,0.115,6.4000000000000001E-2,0.191,0.106]
[null,60,0.19400000000000001,0.10199999999999999,0.32400000000000001,0.17100000000000001]
[null,65,0.32800000000000001,0.16400000000000001,0.54600000000000004,0.27300000000000002]